fUSD/lending_fUSD_20241220
["ID","MTS","AMOUNT","RATE_DAILY","PERIOD"]
[346057742,1734675045458,-500.0,0.00024999,4]
[346057743,1734675045467,-500.0,0.00024999,4]
[346057744,1734675045476,-352.96,0.00024999,4]
[346057745,1734675045485,-500.0,0.00024999,4]
[346057746,1734675045494,-500.0,0.00024999,4]
[346057747,1734675045503,-500.0,0.00024999,2]
[346057748,1734675045512,-500.0,0.00024999,4]
[346057749,1734675045521,-503.74332862,0.00024999,2]
[346057750,1734675045530,-500.0,0.00024999,4]
[346057751,1734675045539,-159.08469048,0.00024999,4]
[346057752,1734675045548,-507.05619393,0.00024999,4]
[346057753,1734675045558,-500.0,0.00024999,4]
[346057754,1734675045567,-500.0,0.00024999,4]
[346057755,1734675045576,-421.98,0.00024999,4]
[346057756,1734675045585,-628.39399325,0.00024999,4]
[346057757,1734675045594,-902.0,0.00024999,2]
[346057758,1734675045603,-729497.23523961,0.00025,3]
[346057759,1734675045620,-4406.73739874,0.00025,3]
[346057760,1734675045631,-5830.01259267,0.00025,3]
[346057761,1734675045642,-536.10592079,0.00025,3]
[346057762,1734675045750,-63135.33527011,0.00025,3]
[346057763,1734675045770,-300.0,0.000239,8]
[346057764,1734675045779,-298.48157386,0.00024999,4]
[346057765,1734675045790,-201.51842614,0.00024999,4]
[346057766,1734675045799,-2191.69454011,0.00025,3]
[346057767,1734675045810,-1302.1840501,0.00025,3]
[346057768,1734675045873,-600.0,0.00024,8]
[346057769,1734675045884,-530.85895477,0.00024994,4]
[346057770,1734675045894,-500.0,0.00024999,4]
[346057771,1734675045903,-637.97,0.00024999,4]
[346057772,1734675045914,-38861.29222632,0.00025,3]
[346057773,1734675045931,-154.09824946,0.000249,2]
[346057774,1734675045942,-37592.67495268,0.00025,3]
[346057775,1734675045952,-4580.78793483,0.00025,2]
[346057776,1734675045964,-191.56990121,0.00025,3]
[346057777,1734675045975,-10221.1823337,0.00025,2]
[346057778,1734675045988,-52870.8446,0.00025,2]
[346057780,1734675046001,-24955.581605,0.00025,2]
[346057805,1734675061803,500.0,0.00021164,2]
[346057806,1734675697654,156.35,0.00010137,2]
[346057808,1734675907770,6077.73725946,0.00013,2]
[346057809,1734675907825,627978.37476413,0.00013,2]
[346057810,1734675907879,2000000.0,0.00013,2]
[346057811,1734675907922,2000000.0,0.00013,2]
[346057812,1734675907953,50000.0,0.00013,2]
[346057813,1734675908003,50000.0,0.00013,2]
[346057814,1734675908035,83550.0,0.00013,2]
[346057815,1734675908092,10000.0,0.00013,2]
[346057816,1734675908130,5572.0,0.00013,2]
[346057817,1734675908168,400000.0,0.00013,2]
[346057818,1734675957110,-264.18411526,0.00013,2]
[346057828,1734676156110,-5266.04257537,0.000121,2]
[346057829,1734676156131,-200.0,0.000121,4]
[346057830,1734676156153,-500.0,0.000122,4]
[346057831,1734676156174,-700.0,0.000123,4]
[346057832,1734676156195,-1000.0,0.000124,4]
[346057833,1734676156216,-300.0,0.00012487,2]
[346057834,1734676156237,-6116.0,0.00012488,2]
[346057835,1734676156261,-1300.0,0.000125,4]
[346057836,1734676156284,-200.0,0.000126,4]
[346057837,1734676156306,-200.0,0.000127,4]
[346057838,1734676156328,-200.0,0.000128,4]
[346057839,1734676156351,-200.0,0.000129,4]
[346057840,1734676156371,-500.0,0.00012973,2]
[346057841,1734676156391,-511.13889382,0.00012973,2]
[346057842,1734676156411,-194.09488395,0.00012999,2]
[346057843,1734676156432,-478.4349728,0.00012999,2]
[346057844,1734676156452,-19322.34908652,0.00013,2]
[346057845,1734676162110,-89067.30196,0.00013,2]
[346057846,1734676172103,-3907.038814,0.00013,2]
[346057858,1734676231744,-210.12461969,0.000129,2]
[346057859,1734676231754,-13888.22301757,0.000129,2]
[346057860,1734676231763,-404.76096559,0.00012973,2]
[346057861,1734676231775,-95.23903441,0.00012973,2]
[346057862,1734676231783,-161.29698826,0.00012973,2]
[346057863,1734676231792,-1154.50810787,0.00012999,3]
[346057864,1734676231801,-38.95586946,0.00012999,2]
[346057865,1734676231903,-111.04413054,0.00012999,2]
[346057866,1734676231913,-150.0,0.00012999,2]
[346057867,1734676231922,-150.0,0.00012999,2]
[346057868,1734676231932,-150.0,0.00012999,2]
[346057869,1734676231941,-150.0,0.00012999,2]
[346057870,1734676231951,-150.0,0.00012999,2]
[346057871,1734676231960,-150.0,0.00012999,2]
[346057872,1734676231970,-150.0,0.00012999,2]
[346057873,1734676231979,-150.0,0.00012999,2]
[346057874,1734676231989,-85.45808167,0.00012999,2]
[346057899,1734676237876,-64.54191833,0.00012999,2]
[346057900,1734676237886,-150.0,0.00012999,2]
[346057901,1734676237896,-41.99070781,0.00012999,2]
[346057902,1734676237907,-108.00929219,0.00012999,2]
[346057903,1734676237916,-8880371.86770881,0.00013,2]
[346057915,1734676239774,-24429.42093988,0.00013,2]
[346057916,1734676239785,-4106.49371718,0.00013,2]
[346057917,1734676239796,-7507.37194817,0.00013,2]
[346057918,1734676239960,-1070.793,0.00013,2]
[346057919,1734676240030,-524.5,0.00013,2]
[346057920,1734676240041,-1291.68179198,0.00013,2]
[346057973,1734676242641,-500.0,0.00012999,2]
[346057975,1734676242650,-500.0,0.00012999,2]
[346057976,1734676242659,-500.0,0.00012999,2]
[346057977,1734676242669,-500.0,0.00012999,2]
[346057978,1734676242678,-391.2391317,0.00012999,2]
[346057979,1734676242687,-500.0,0.00012999,2]
[346057980,1734676242696,-356.68489262,0.00012999,2]
[346057982,1734676242706,-500.0,0.00012999,2]
[346057983,1734676242715,-500.0,0.00012999,2]
[346057984,1734676242723,-500.0,0.00012999,2]
[346057985,1734676242733,-500.0,0.00012999,2]
[346057986,1734676242742,-500.0,0.00012999,2]
[346057987,1734676242751,-500.0,0.00012999,2]
[346057988,1734676242761,-500.0,0.00012999,2]
[346057989,1734676242770,-500.0,0.00012999,2]
[346057990,1734676242779,-500.0,0.00012999,2]
[346057991,1734676242788,-500.0,0.00012999,2]
[346057992,1734676242797,-500.0,0.00012999,2]
[346057993,1734676242806,-986.60489066,0.00013,2]
[346057994,1734676242817,-14934.03308031,0.00013,2]
[346057995,1734676242828,-22880.0,0.00013,2]
[346058017,1734676245911,-862.83304905,0.00013,2]
[346058022,1734676246212,-263.21584521,0.00013,2]
[346058023,1734676489659,250.0,0.0001902,7]
[346058024,1734676578076,250.0,0.00019022,7]
[346058025,1734676607104,156.08,0.00010137,2]
[346058027,1734676811185,795.67,0.00011946,2]
[346058028,1734676929111,-1116.54,0.00012007,2]
[346058029,1734676929148,-200.0,0.000121,4]
[346058030,1734677034385,325.09,0.00010027,2]
[346058031,1734677052597,250.0,0.00011944,2]
[346058032,1734677106269,150.0,0.00011688,2]
[346058033,1734677106479,150.0,0.00012012,2]
[346058034,1734677109292,156.30336801,0.00011688,2]
[346058035,1734677110242,250.0,0.00012016,2]
[346058036,1734677116023,158.25772747,0.00011688,2]
[346058037,1734677157145,-325.09,0.00012291,2]
[346058038,1734677157168,-150.0,0.00012337,2]
[346058039,1734677157204,-234.3744191,0.00012619,2]
[346058040,1734677193106,-159.0,0.00012614,2]
[346058041,1734677193128,-76.33359436,0.00012619,2]
[346058042,1734677219926,-75.08206411,0.00012619,2]
[346058043,1734677243920,261.91793589,0.000121,4]
[346058044,1734677243950,38.08206411,0.000121,4]
[346058061,1734677373103,-1000.0,0.00012163,2]
[346058062,1734677373126,-478.01,0.00012164,2]
[346058063,1734677373149,-303.336196,0.000122,4]
[346058077,1734677431980,-296.663804,0.000122,4]
[346058078,1734677431992,-900.0,0.000123,4]
[346058079,1734677432001,-1200.0,0.000124,4]
[346058080,1734677432011,-1500.0,0.000125,4]
[346058081,1734677432020,-300.0,0.000126,4]
[346058082,1734677432029,-500.0,0.00012605,2]
[346058083,1734677432039,-150.0,0.00012662,2]
[346058084,1734677432048,-250.0,0.00012668,2]
[346058085,1734677432058,-300.0,0.000127,4]
[346058086,1734677432069,-300.0,0.000128,4]
[346058087,1734677432079,-198.78,0.00012814,2]
[346058088,1734677432090,-200.0,0.00012865,2]
[346058089,1734677432100,-1108.95998875,0.00012899,2]
[346058090,1734677432110,-10315.97046968,0.00012899,2]
[346058091,1734677432120,-343.67679803,0.000129,2]
[346058092,1734677432129,-2814.36739957,0.000129,2]
[346058093,1734677432139,-5969.54287135,0.000129,2]
[346058094,1734677432148,-365.98333314,0.000129,2]
[346058095,1734677432157,-40981.50690484,0.000129,2]
[346058096,1734677432167,-94924.69067144,0.000129,2]
[346058097,1734677432201,-2598.92672693,0.000129,2]
[346058098,1734677432382,-16085.0,0.000129,2]
[346058099,1734677432394,-5400.0,0.000129,2]
[346058100,1734677432406,-5880.0,0.000129,2]
[346058101,1734677432417,-1360.0,0.000129,2]
[346058102,1734677432429,-8277.0678179,0.000129,2]
[346058103,1734677432438,-300.0,0.000129,4]
[346058104,1734677432448,-3065.61839469,0.000129,2]
[346058105,1734677432458,-1500.38332832,0.000129,2]
[346058106,1734677432467,-5614.59994368,0.000129,2]
[346058107,1734677432476,-378.14219748,0.000129,2]
[346058108,1734677432488,-7774.0,0.00012959,2]
[346058109,1734677432497,-8855.0,0.00012959,2]
[346058110,1734677432507,-500.0,0.00012973,2]
[346058111,1734677432516,-160.0259442,0.00012973,2]
[346058112,1734677432525,-160.20863754,0.00012973,2]
[346058113,1734677432535,-159.69088178,0.00012973,2]
[346058114,1734677432544,-160.20939371,0.00012973,2]
[346058115,1734677432553,-275.54358941,0.00012973,2]
[346058116,1734677432562,-160.02135059,0.00012973,2]
[346058117,1734677432572,-500.0,0.00012973,2]
[346058118,1734677432582,-160.01895629,0.00012973,2]
[346058120,1734677432591,-320.97661083,0.00012973,2]
[346058122,1734677432612,-182.7526958,0.00012973,2]
[346058123,1734677432621,-305.35909603,0.00012973,2]
[346058124,1734677432633,-320.99355561,0.00012973,2]
[346058133,1734677437876,-637.21592014,0.000129,2]
[346058134,1734677437885,-179.00644439,0.00012973,2]
[346058135,1734677437895,-159.81120176,0.00012973,2]
[346058136,1734677437904,-500.0,0.00012973,2]
[346058137,1734677437913,-500.0,0.00012973,2]
[346058138,1734677437922,-300.05526745,0.00012973,2]
[346058139,1734677437931,-226.13889653,0.00012986,2]
[346058140,1734677437940,-334.4275602,0.0001299,2]
[346058141,1734677437950,-334.4275602,0.0001299,2]
[346058142,1734677437959,-334.4275602,0.0001299,2]
[346058143,1734677437968,-536.85813452,0.00012999,2]
[346058144,1734677437977,-501.22395548,0.00012999,2]
[346058145,1734677437987,-500.0,0.00012999,2]
[346058146,1734677438002,-500.0,0.00012999,2]
[346058147,1734677438014,-500.0,0.00012999,2]
[346058148,1734677438024,-300.0,0.00012999,2]
[346058149,1734677438034,-214.50732026,0.00012999,2]
[346058150,1734677438044,-500.0,0.00012999,2]
[346058151,1734677438053,-500.0,0.00012999,2]
[346058152,1734677438063,-500.0,0.00012999,2]
[346058153,1734677438071,-500.0,0.00012999,2]
[346058154,1734677438081,-500.0,0.00012999,2]
[346058155,1734677438090,-500.0,0.00012999,2]
[346058156,1734677438099,-500.0,0.00012999,2]
[346058157,1734677438109,-500.0,0.00012999,2]
[346058158,1734677438119,-500.0,0.00012999,2]
[346058159,1734677438128,-500.0,0.00012999,2]
[346058160,1734677438137,-500.0,0.00012999,2]
[346058161,1734677438147,-500.0,0.00012999,2]
[346058162,1734677438156,-250.0,0.00012999,2]
[346058163,1734677438165,-500.0,0.00012999,2]
[346058164,1734677438174,-500.0,0.00012999,2]
[346058165,1734677438184,-500.0,0.00012999,2]
[346058166,1734677438193,-217.30419395,0.00012999,2]
[346058167,1734677438202,-500.0,0.00012999,2]
[346058168,1734677438212,-500.0,0.00012999,2]
[346058169,1734677438221,-500.0,0.00012999,2]
[346058170,1734677438231,-500.0,0.00012999,2]
[346058171,1734677438244,-502.24311688,0.00012999,2]
[346058172,1734677438253,-500.0,0.00012999,2]
[346058173,1734677438263,-350.0,0.00012999,2]
[346058174,1734677438272,-500.0,0.00012999,2]
[346058175,1734677438282,-500.22686198,0.00012999,2]
[346058176,1734677438291,-500.0,0.00012999,2]
[346058177,1734677438300,-560.01015953,0.00012999,2]
[346058178,1734677438310,-500.0,0.00012999,2]
[346058179,1734677438318,-500.0,0.00012999,2]
[346058180,1734677438328,-501.40210588,0.00012999,2]
[346058181,1734677438337,-500.0,0.00012999,2]
[346058182,1734677438346,-500.0,0.00012999,2]
[346058183,1734677438355,-500.0,0.00012999,2]
[346058184,1734677438364,-500.0,0.00012999,2]
[346058185,1734677438373,-500.0,0.00012999,2]
[346058186,1734677438382,-500.0,0.00012999,2]
[346058187,1734677438391,-543.68418069,0.00012999,2]
[346058188,1734677438400,-500.0,0.00012999,2]
[346058189,1734677438409,-500.0,0.00012999,2]
[346058190,1734677438418,-494.72069978,0.00012999,2]
[346058191,1734677438428,-500.0,0.00012999,2]
[346058192,1734677438437,-500.0,0.00012999,2]
[346058193,1734677438446,-500.0,0.00012999,2]
[346058194,1734677438455,-500.0,0.00012999,2]
[346058195,1734677438464,-500.0,0.00012999,2]
[346058196,1734677438474,-500.0,0.00012999,2]
[346058197,1734677438483,-500.0,0.00012999,2]
[346058198,1734677438493,-200.0,0.00012999,2]
[346058199,1734677438503,-547.90244026,0.00012999,2]
[346058200,1734677438513,-150.0,0.00012999,2]
[346058202,1734677438522,-150.0,0.00012999,2]
[346058204,1734677438532,-150.0,0.00012999,2]
[346058213,1734677438707,-150.0,0.00012999,2]
[346058215,1734677438716,-150.0,0.00012999,2]
[346058217,1734677438726,-150.0,0.00012999,2]
[346058219,1734677438736,-42643.20887734,0.00013,2]
[346058221,1734677438751,-65618.94572294,0.00013,2]
[346058227,1734677438800,-3258.69877366,0.00013,2]
[346058228,1734677438812,-313.74999826,0.00013,2]
[346058229,1734677438828,-8019837.75688583,0.00013,2]
[346058230,1734677438861,-304.94301917,0.00013,2]
[346058231,1734677438873,-10160.31692004,0.00013,2]
[346058232,1734677438884,-1249.1809379,0.00013,2]
[346058233,1734677438895,-1317.61534423,0.00013,2]
[346058234,1734677438911,-1864.29040646,0.00013,2]
[346058235,1734677438923,-9280.06119484,0.00013,2]
[346058243,1734677440117,-78972.51844297,0.00013,2]
[346058256,1734677443088,-26.1481771,0.00012973,2]
[346058257,1734677443100,-323.78760875,0.00012973,2]
[346058258,1734677443201,-176.9943867,0.00012973,2]
[346058259,1734677443211,-86.2576133,0.00013,2]
[346058260,1734677443406,-78.82937998,0.00013,2]
[346058261,1734677443418,-1461.49401925,0.00013,2]
[346058271,1734677446123,-284.13844004,0.00013,2]
[346058272,1734677446270,-318.82521189,0.00013,2]
[346058273,1734677446324,-1926.01,0.00013,2]
[346058281,1734677549227,155.41,0.00010137,2]
[346058283,1734678304344,150.0,0.00011688,2]
[346058284,1734678306457,150.0,0.00011688,2]
[346058285,1734678306749,150.0,0.00011904,2]
[346058286,1734678315857,150.0,0.00011688,2]
[346058287,1734678316166,150.0,0.0001185,2]
[346058288,1734678316594,150.0,0.00012012,2]
[346058289,1734678320245,150.71269988,0.00011688,2]
[346058290,1734678325095,231.21625263,0.00011688,2]
[346058291,1734678332031,150.63814448,0.00011688,2]
[346058292,1734678338787,150.0,0.00011688,2]
[346058293,1734678481502,63657.76096557,0.0001211,2]
[346058294,1734678545167,-150.0,0.00012121,2]
[346058295,1734678545189,-150.0,0.00012175,2]
[346058296,1734678545209,-293.27,0.0001229,2]
[346058297,1734678545230,-133.057,0.0001229,2]
[346058298,1734678545295,-116.943,0.0001229,2]
[346058299,1734678545320,-150.0,0.00012337,2]
[346058300,1734678545347,-150.0,0.00012337,2]
[346058301,1734678545376,-150.0,0.00012499,2]
[346058302,1734678545402,-150.0,0.00012553,2]
[346058303,1734678545427,-1000.0,0.00012565,2]
[346058304,1734678545453,-150.0,0.00012662,2]
[346058305,1734678545481,-437.369,0.0001274,2]
[346058306,1734678545506,-150.0,0.0001277,2]
[346058307,1734678545530,-385.79007757,0.0001277,2]
[346058308,1734678545554,-300.0,0.00012788,2]
[346058309,1734678545578,-5881.0,0.00012789,2]
[346058310,1734678545602,-150.0,0.00012824,2]
[346058311,1734678545628,-595.44195223,0.0001287,2]
[346058312,1734678545653,-3000.0,0.0001287,2]
[346058313,1734678545678,-190.69909232,0.000129,2]
[346058314,1734678545704,-150.40069841,0.000129,2]
[346058315,1734678545730,-3670.94580475,0.000129,2]
[346058316,1734678545755,-502.88497921,0.00012973,2]
[346058317,1734678545779,-503.90880923,0.00012973,2]
[346058318,1734678545803,-501.80926741,0.00012973,2]
[346058319,1734678545827,-500.0,0.00012973,2]
[346058320,1734678545853,-150.0,0.00012986,2]
[346058321,1734678545880,-150.0,0.00012986,2]
[346058322,1734678545905,-150.0,0.00012986,2]
[346058323,1734678545929,-151.70495759,0.00012986,2]
[346058324,1734678545960,-500.0,0.00012999,2]
[346058325,1734678545988,-490.53647609,0.00012999,2]
[346058326,1734678546016,-500.0,0.00012999,2]
[346058327,1734678546042,-500.0,0.00012999,2]
[346058328,1734678546070,-431.24115084,0.00012999,2]
[346058329,1734678546095,-500.0,0.00012999,2]
[346058330,1734678546122,-27689.32473435,0.00013,2]
[346058331,1734678547828,-50000.0,0.00013,2]
[346058338,1734678552067,-1559.96,0.0001212,2]
[346058339,1734678552093,-200.2081622,0.00012935,2]
[346058340,1734678552123,-48239.8318378,0.00013,2]
[346058341,1734678553245,-50000.0,0.00013,2]
[346058342,1734678554348,-50000.0,0.00013,2]
[346058343,1734678555177,-72625.51774268,0.00013,2]
[346058344,1734678555400,-50000.0,0.00013,2]
[346058345,1734678556418,-50000.0,0.00013,2]
[346058346,1734678557492,-50000.0,0.00013,2]
[346058347,1734678559326,-50000.0,0.00013,2]
[346058348,1734678560400,-50000.0,0.00013,2]
[346058349,1734678571008,-50000.0,0.00013,2]
[346058350,1734678572241,-50000.0,0.00013,2]
[346058351,1734678573149,-3907.039696,0.00013,2]
[346058353,1734678590164,-500.0,0.00012973,2]
[346058354,1734678590190,-49500.0,0.00013,2]
[346058355,1734678591288,-50000.0,0.00013,2]
[346058356,1734678615181,150.66,0.00010137,2]
[346058364,1734678632186,-1503.22425527,0.00013,2]
[346058365,1734678632198,-11987.6,0.00013,2]
[346058366,1734678632209,-10330.0,0.00013,2]
[346058367,1734678632426,-522.67167333,0.00013,2]
[346058368,1734678632437,-284.65347333,0.00013,2]
[346058369,1734678632456,-76062.00795968,0.00013,2]
[346058370,1734678632489,-277.78021386,0.00013,2]
[346058395,1734678638218,-19588.0,0.00013,2]
[346058396,1734678638231,-8209.09879246,0.00013,2]
[346058397,1734678638383,-59758.54581593,0.00013,2]
[346058398,1734678638402,-2583.21074644,0.00013,2]
[346058399,1734678638413,-74555.84329746,0.00013,2]
[346058404,1734678640079,-10179.66434425,0.00013,2]
[346058411,1734678640143,-4424.99696,0.00013,2]
[346058413,1734678640154,-507.19412,0.00013,2]
[346058442,1734678641027,-81372.16480361,0.00013,2]
[346058443,1734678641043,-45394.52595863,0.00013,2]
[346058444,1734678641054,-10693.2126024,0.00013,2]
[346058445,1734678641066,-2263.41957,0.00013,2]
[346058446,1734678641077,-1526.265,0.00013,2]
[346058447,1734678641090,-2430.05870274,0.00013,2]
[346058448,1734678641106,-1739.74589367,0.00013,2]
[346058462,1734678643465,-4913.15181181,0.00013,2]
[346058466,1734678643610,-531.40185358,0.00013,2]
[346058467,1734678646235,-4244.93782589,0.00013,2]
[346058468,1734678646248,-358.3294267,0.00013,2]
[346058469,1734678646259,-9379.5456,0.00013,2]
[346058470,1734678646397,-13366.98773041,0.00013,2]
[346058471,1734678646409,-164105.5971982,0.00013,2]
[346058488,1734679310591,1000.0,0.000225,30]
[346058489,1734679323586,1000.0,0.000225,30]
[346058490,1734679359293,169.59,0.00016728,30]
[346058491,1734679364129,1000.0,0.000225,30]
[346058492,1734679393605,503.375468,0.000225,120]
[346058493,1734679395521,150.0,0.00023,120]
[346058494,1734679395718,2000.0,0.000225,120]
[346058495,1734679397285,1000.0,0.000225,30]
[346058496,1734679410354,1000.0,0.000225,30]
[346058497,1734679415687,200.0,0.000225,120]
[346058498,1734679428385,150.0,0.00023,120]
[346058499,1734679456592,-441.078,0.0001235,2]
[346058500,1734679456615,-166.66666667,0.0001264,2]
[346058501,1734679456639,-349.896,0.0001274,2]
[346058502,1734679456661,-500.0,0.00012999,2]
[346058503,1734679456683,-300.0,0.00012999,2]
[346058504,1734679456706,-44715.35933333,0.00013,2]
[346058505,1734679464677,200.9868954,0.00023,120]
[346058506,1734679505630,150.0,0.00011688,2]
[346058507,1734679508460,150.0,0.00011688,2]
[346058508,1734679515540,150.0,0.00011688,2]
[346058509,1734679517474,150.0,0.00011688,2]
[346058510,1734679523609,167.61,0.00010137,2]
[346058512,1734679528983,-441.49,0.0001235,2]
[346058513,1734679529009,-161.60340137,0.00012986,2]
[346058514,1734679529033,-300.0,0.00012999,2]
[346058515,1734679529058,-21691.90659863,0.00013,2]
[346058516,1734679534697,150.0,0.00011688,2]
[346058517,1734679577208,-2636.66211,0.0001287,2]
[346058518,1734679577231,-113.33789,0.00012999,2]
[346058524,1734679755157,-1409.14944298,0.00012999,2]
[346058545,1734679832815,-300.0,0.00012999,2]
[346058556,1734679838340,-15884.60366661,0.00012999,2]
[346058557,1734679838350,-93689.81400833,0.00013,2]
[346058558,1734679838387,-22323.91042253,0.00013,2]
[346058559,1734679838401,-11892.72271579,0.00013,2]
[346058560,1734679838416,-7214.41,0.00013,2]
[346058561,1734679838531,-1471.62,0.00013,2]
[346058562,1734679838611,-265.13215915,0.00013,2]
[346058566,1734679840354,-1423.44,0.00013,2]
[346058567,1734679840366,-99256.02909829,0.00013,2]
[346058568,1734679840493,-2516.81878036,0.00013,2]
[346058569,1734679840505,-2216.23312915,0.00013,2]
[346058570,1734679840629,-979.23366344,0.00013,2]
[346058571,1734679840640,-512.27,0.00013,2]
[346058572,1734679840653,-710.47421171,0.00013,2]
[346058578,1734679843612,-79.00299743,0.00013,2]
[346058579,1734679843741,-2820.12471252,0.00013,2]
[346058580,1734679843753,-548.915419,0.00013,2]
[346058581,1734679843765,-7437.089528,0.00013,2]
[346058596,1734679846285,-605.03898025,0.00013,2]
[346058597,1734679846297,-1613.94584762,0.00013,2]
[346058609,1734679846439,-0.13302995,0.00013,2]
[346058610,1734679846494,-273.32163245,0.00013,2]
[346058611,1734679846787,-854.42615289,0.00013,2]
[346058612,1734679846798,-355.64993399,0.00013,2]
[346058613,1734679846809,-2311.59992,0.00013,2]
[346058614,1734679846821,-2188.51092945,0.00013,2]
[346058616,1734679846832,-253.47548192,0.00013,2]
[346058651,1734679939377,-734.0,0.0001287,2]
[346058652,1734679939397,-500.0,0.00012973,2]
[346058653,1734679939418,-500.0,0.00012999,2]
[346058654,1734679939441,-300.0,0.00012999,2]
[346058655,1734679939461,-595.0,0.00013,2]
[346058656,1734679939483,-8799323.0,0.00013,2]
[346058657,1734679994260,335.455175,0.00023,120]
[346058658,1734679996752,2000.0,0.00023,120]
[346058659,1734679999691,219.788361,0.00023,120]
[346058660,1734680009279,200.0,0.00023,120]
[346058661,1734680057880,-458.761,0.0001235,2]
[346058662,1734680057908,-300.0,0.000128,4]
[346058663,1734680057934,-238.91458595,0.00012835,2]
[346058664,1734680057960,-5076.75809062,0.000129,2]
[346058665,1734680057988,-700.0,0.000129,4]
[346058666,1734680058017,-300.0,0.00012906,2]
[346058667,1734680058044,-500.0,0.00012973,2]
[346058668,1734680058071,-500.0,0.00012999,2]
[346058669,1734680058099,-350.23257191,0.00012999,2]
[346058670,1734680058126,-536.0,0.00013,2]
[346058671,1734680058152,-412626.6880457,0.00013,2]
[346058672,1734680058330,-199442.29141164,0.00013,2]
[346058679,1734680215565,-128430.0,0.00012741,2]
[346058680,1734680215592,-3299.622023,0.00012835,2]
[346058681,1734680215622,-166.95337148,0.000129,2]
[346058682,1734680215649,-14730.71509274,0.000129,2]
[346058683,1734680215679,-161.05242703,0.000129,2]
[346058684,1734680215708,-198.27,0.00013,2]
[346058685,1734680215736,-252.3,0.00013,2]
[346058686,1734680215764,-436.35653292,0.00013,2]
[346058687,1734680215793,-1000.0,0.00013,2]
[346058688,1734680215821,-1000.0,0.00013,2]
[346058689,1734680215848,-1000.0,0.00013,2]
[346058690,1734680215876,-1000.0,0.00013,2]
[346058691,1734680215903,-1000.0,0.00013,2]
[346058692,1734680215930,-1000.0,0.00013,2]
[346058693,1734680215957,-1000.0,0.00013,2]
[346058694,1734680215984,-1000.0,0.00013,2]
[346058695,1734680216011,-1000.0,0.00013,2]
[346058696,1734680216040,-1000.0,0.00013,2]
[346058697,1734680216067,-1000.0,0.00013,2]
[346058698,1734680216095,-1000.0,0.00013,2]
[346058699,1734680216124,-1000.0,0.00013,2]
[346058700,1734680216156,-1000.0,0.00013,2]
[346058701,1734680216183,-1000.0,0.00013,2]
[346058702,1734680216210,-1000.0,0.00013,2]
[346058703,1734680216237,-1000.0,0.00013,2]
[346058704,1734680216264,-1000.0,0.00013,2]
[346058705,1734680216291,-1000.0,0.00013,2]
[346058706,1734680216318,-1000.0,0.00013,2]
[346058707,1734680216345,-1000.0,0.00013,2]
[346058708,1734680216375,-1000.0,0.00013,2]
[346058709,1734680216404,-1000.0,0.00013,2]
[346058710,1734680216430,-1000.0,0.00013,2]
[346058711,1734680216457,-1000.0,0.00013,2]
[346058712,1734680216485,-1000.0,0.00013,2]
[346058713,1734680216518,-1000.0,0.00013,2]
[346058714,1734680216546,-1000.0,0.00013,2]
[346058715,1734680216574,-1000.0,0.00013,2]